fUSD/lending_fUSD_20260703
["ID","MTS","AMOUNT","RATE_DAILY","PERIOD"]
[426914136,1783008404000,22004.84,0.0001,2]
[426914139,1783008631000,-509.0,0.0001611,2]
[426914141,1783008631000,-376.91650155,0.00016916,2]
[426914143,1783008631000,-300.0,0.00017721,2]
[426914140,1783008631000,-300.0,0.00016916,2]
[426914148,1783008631000,-300.0,0.00017827,2]
[426914145,1783008631000,-165.28987561,0.00017721,2]
[426914142,1783008631000,-223.08349845,0.00016916,2]
[426914144,1783008631000,-600.0,0.00017721,2]
[426914147,1783008631000,-2.10598534,0.00017827,2]
[426914146,1783008631000,-297.89401466,0.00017827,2]
[426914210,1783008632000,-156.0,0.00024,2]
[426914204,1783008632000,-1852.42,0.00023317,2]
[426914206,1783008632000,-158.0,0.00024,2]
[426914197,1783008632000,-150.0,0.00023111,2]
[426914200,1783008632000,-166.17,0.00023221,2]
[426914195,1783008632000,-150.0,0.00023014,2]
[426914208,1783008632000,-348.0,0.00024,2]
[426914202,1783008632000,-150.0,0.0002323,2]
[426914191,1783008632000,-173.48,0.00022617,2]
[426914189,1783008632000,-11853.57,0.00022578,2]
[426914193,1783008632000,-168.35,0.00023009,2]
[426914212,1783008632000,-354.0,0.00024,2]
[426914220,1783008632000,-450.22,0.00024174,2]
[426914218,1783008632000,-150.0,0.00024164,2]
[426914180,1783008632000,-2637.33174368,0.00022575,2]
[426914224,1783008632000,-4520.99,0.00024174,2]
[426914222,1783008632000,-380.2,0.00024174,2]
[426914216,1783008632000,-500.0,0.00024,2]
[426914235,1783008632000,-6329.03325787,0.00024799,2]
[426914238,1783008632000,-2000.0,0.000248,2]
[426914227,1783008632000,-4091.83,0.00024174,2]
[426914231,1783008632000,-187.43493805,0.000247,2]
[426914233,1783008632000,-163.21,0.00024701,2]
[426914229,1783008632000,-169.72,0.00024658,2]
[426914242,1783008632000,-911.5885,0.000248,120]
[426914214,1783008632000,-351.0,0.00024,2]
[426914187,1783008632000,-2362.66825632,0.00022575,2]
[426914177,1783008632000,-509.0,0.00022499,7]
[426914243,1783008632000,-2500.0,0.000248,2]
[426914149,1783008632000,-600.0,0.00017827,2]
[426914157,1783008632000,-889.0,0.00019674,2]
[426914158,1783008632000,-902.0,0.00019674,2]
[426914150,1783008632000,-600.0,0.00017827,2]
[426914152,1783008632000,-561.21,0.00018,2]
[426914154,1783008632000,-745.60965273,0.00018419,2]
[426914156,1783008632000,-509.0,0.00019305,4]
[426914151,1783008632000,-282.5332257,0.00017919,2]
[426914153,1783008632000,-498.42209986,0.00018419,2]
[426914155,1783008632000,-1008.8298,0.00018419,2]
[426914159,1783008632000,-903.0,0.00019674,2]
[426914161,1783008632000,-500.0,0.00020956,2]
[426914162,1783008632000,-239.49053586,0.00020956,2]
[426914171,1783008632000,-200.0,0.00022433,2]
[426914160,1783008632000,-891.0,0.00020241,2]
[426914169,1783008632000,-170.27,0.00021991,2]
[426914165,1783008632000,-150.0,0.00021918,2]
[426914163,1783008632000,-892.0,0.00021,2]
[426914167,1783008632000,-600.0,0.00021918,10]
[426914168,1783008632000,-170.27,0.00021991,2]
[426914166,1783008632000,-600.0,0.00021918,10]
[426914170,1783008632000,-882.01157727,0.00022318,2]
[426914172,1783008632000,-200.0,0.00022433,2]
[426914173,1783008632000,-163.21,0.00022456,2]
[426914175,1783008632000,-380.84,0.00022476,2]
[426914174,1783008632000,-200.0,0.00022463,2]
[426914244,1783008632000,-500.0,0.00024897,2]
[426914164,1783008632000,-500.0,0.00021315,2]
[426914247,1783008632000,-500.0,0.00024897,2]
[426914299,1783008632000,-500.0,0.00024897,2]
[426914296,1783008632000,-500.0,0.00024897,2]
[426914301,1783008632000,-500.0,0.00024897,2]
[426914304,1783008632000,-500.0,0.00024897,2]
[426914323,1783008632000,-1000.0,0.00024899,2]
[426914306,1783008632000,-500.0,0.00024897,2]
[426914310,1783008632000,-358.60376212,0.00024897,2]
[426914303,1783008632000,-500.0,0.00024897,2]
[426914302,1783008632000,-500.0,0.00024897,2]
[426914300,1783008632000,-216.99524506,0.00024897,2]
[426914308,1783008632000,-500.0,0.00024897,2]
[426914309,1783008632000,-500.0,0.00024897,2]
[426914293,1783008632000,-500.0,0.00024897,2]
[426914307,1783008632000,-500.0,0.00024897,2]
[426914315,1783008632000,-500.0,0.00024899,2]
[426914314,1783008632000,-264.70514283,0.00024899,2]
[426914318,1783008632000,-416.50816754,0.00024899,2]
[426914313,1783008632000,-500.0,0.00024897,2]
[426914316,1783008632000,-500.0,0.00024899,2]
[426914311,1783008632000,-500.0,0.00024897,2]
[426914322,1783008632000,-500.0,0.00024899,2]
[426914319,1783008632000,-500.0,0.00024899,2]
[426914317,1783008632000,-500.0,0.00024899,2]
[426914321,1783008632000,-315.71160291,0.00024899,2]
[426914320,1783008632000,-293.50077094,0.00024899,2]
[426914245,1783008632000,-500.0,0.00024897,2]
[426914312,1783008632000,-500.0,0.00024897,2]
[426914298,1783008632000,-500.0,0.00024897,2]
[426914305,1783008632000,-500.0,0.00024897,2]
[426914291,1783008632000,-500.0,0.00024897,2]
[426914259,1783008632000,-500.0,0.00024897,2]
[426914253,1783008632000,-430.34262636,0.00024897,2]
[426914240,1783008632000,-27582.7613,0.000248,2]
[426914249,1783008632000,-500.0,0.00024897,2]
[426914295,1783008632000,-500.0,0.00024897,2]
[426914255,1783008632000,-500.0,0.00024897,2]
[426914251,1783008632000,-500.0,0.00024897,2]
[426914261,1783008632000,-500.0,0.00024897,2]
[426914263,1783008632000,-500.0,0.00024897,2]
[426914265,1783008632000,-500.0,0.00024897,2]
[426914273,1783008632000,-500.0,0.00024897,2]
[426914281,1783008632000,-500.0,0.00024897,2]
[426914280,1783008632000,-500.0,0.00024897,2]
[426914257,1783008632000,-500.0,0.00024897,2]
[426914269,1783008632000,-500.0,0.00024897,2]
[426914278,1783008632000,-500.0,0.00024897,2]
[426914267,1783008632000,-500.0,0.00024897,2]
[426914271,1783008632000,-500.0,0.00024897,2]
[426914285,1783008632000,-500.0,0.00024897,2]
[426914297,1783008632000,-500.0,0.00024897,2]
[426914283,1783008632000,-500.0,0.00024897,2]
[426914289,1783008632000,-500.0,0.00024897,2]
[426914292,1783008632000,-500.0,0.00024897,2]
[426914290,1783008632000,-500.0,0.00024897,2]
[426914287,1783008632000,-500.0,0.00024897,2]
[426914294,1783008632000,-500.0,0.00024897,2]
[426914275,1783008632000,-500.0,0.00024897,2]
[426914324,1783008633000,-82092.07801719,0.000249,120]
[426914328,1783008633000,-3139.65307188,0.000249,120]
[426914326,1783008633000,-5066.79958262,0.000249,120]
[426914327,1783008633000,-2726.52883703,0.000249,120]
[426914325,1783008633000,-17559.48462784,0.000249,120]
[426914329,1783008633000,-5223.64883449,0.000249,120]
[426914337,1783008638000,-1230.66163602,0.000249,120]
[426914336,1783008638000,-222.89,0.00024658,2]
[426914543,1783008643000,-25856.97802223,0.000249,120]
[426914572,1783008646000,-152.04906226,0.00024967,2]
[426914567,1783008646000,-2377.439743,0.00024913,2]
[426914577,1783008646000,-1000.0,0.00024999,2]
[426914565,1783008646000,-5589.69,0.00024904,2]
[426914563,1783008646000,-268.9056494,0.000249,2]
[426914562,1783008646000,-102050.49212668,0.000249,120]
[426914560,1783008646000,-42910.39610422,0.000249,120]
[426914561,1783008646000,-2744.2503398,0.000249,120]
[426914579,1783008646000,-602981.02664011,0.00025,2]
[426914564,1783008646000,-200.0,0.000249,9]
[426914578,1783008646000,-1000.0,0.00024999,2]
[426914581,1783008646000,-158.0,0.00025,2]
[426914568,1783008646000,-5821.0450585,0.00024913,2]
[426914571,1783008646000,-41645.8488917,0.00024913,2]
[426914583,1783008646000,-354.0,0.00025,2]
[426914576,1783008646000,-623.10999442,0.00024999,2]
[426914574,1783008646000,-1082.6663738,0.00024999,10]
[426914582,1783008646000,-348.0,0.00025,2]
[426914580,1783008646000,-1008.32311923,0.00025,2]
[426914569,1783008646000,-1030.766429,0.00024913,2]
[426914566,1783008646000,-18082.352236,0.00024913,2]
[426914570,1783008646000,-251.2337487,0.00024913,2]
[426914573,1783008646000,-151.0,0.00024997,7]
[426914586,1783008647000,-1000.0,0.00025022,2]
[426914585,1783008647000,-300.36277924,0.00025,2]
[426914587,1783008647000,-1129.0,0.00025317,2]
[426914589,1783008647000,-173.48,0.00025444,2]
[426914593,1783008647000,-490.40728794,0.000257,2]
[426914588,1783008647000,-150.0,0.00025373,2]
[426914592,1783008647000,-509.0,0.00025694,10]
[426914584,1783008647000,-351.0,0.00025,2]
[426914591,1783008647000,-150.0,0.00025675,7]
[426914595,1783008647000,-151.0,0.00025797,7]
[426914594,1783008647000,-295.1385164,0.000257,2]
[426914597,1783008647000,-1000.0,0.00025799,2]
[426914599,1783008647000,-145001.62647178,0.000258,2]
[426914598,1783008647000,-1000.0,0.00025799,2]
[426914600,1783008647000,-477231.20910079,0.000258,2]
[426914596,1783008647000,-151.0,0.00025797,7]
[426914590,1783008647000,-500.0,0.00025671,2]
[426914618,1783009832000,-552.54716745,0.00019014,2]
[426914623,1783009832000,-892.0,0.00021197,2]
[426914627,1783009832000,-150.0,0.00021918,2]
[426914628,1783009832000,-509.0,0.00021918,7]
[426914626,1783009832000,-7403.90634529,0.00021346,2]
[426914636,1783009832000,-889.0,0.00022312,2]
[426914625,1783009832000,-209.24,0.00021273,2]
[426914633,1783009832000,-912.0,0.00022207,2]
[426914631,1783009832000,-902.0,0.00022207,2]
[426914634,1783009832000,-906.0,0.00022255,2]
[426914624,1783009832000,-855.6,0.00021273,2]
[426914622,1783009832000,-184.87263397,0.00020956,2]
[426914635,1783009832000,-3034.58896386,0.00022307,2]
[426914620,1783009832000,-898.0,0.00019787,2]
[426914630,1783009832000,-885.0,0.00022166,2]
[426914629,1783009832000,-200.0,0.00022,10]
[426914619,1783009832000,-905.0,0.00019787,2]
[426914615,1783009832000,-2838.47452718,0.00016346,2]
[426914613,1783009832000,-1237.08734021,0.00016346,2]
[426914617,1783009832000,-509.0,0.00019014,4]
[426914614,1783009832000,-443.65147059,0.00016346,2]
[426914616,1783009832000,-1116.33822246,0.00018916,2]
[426914612,1783009832000,-905.03509784,0.00016346,2]
[426914610,1783009832000,-509.0,0.0001611,2]
[426914611,1783009832000,-142.59844034,0.00016346,2]
[426914621,1783009832000,-897.0,0.00020388,2]
[426914638,1783009832000,-915.0,0.00022376,2]
[426914653,1783009832000,-218.03028809,0.00023,2]
[426914637,1783009832000,-911.0,0.00022312,2]
[426914642,1783009832000,-607.25,0.00022492,2]
[426914662,1783009832000,-225.49,0.00023936,2]
[426914664,1783009832000,-159.0,0.00024,2]
[426914663,1783009832000,-893.0,0.00023984,2]
[426914657,1783009832000,-909.0,0.00023587,2]
[426914658,1783009832000,-905.0,0.00023587,2]
[426914655,1783009832000,-401.07369456,0.00023298,2]
[426914656,1783009832000,-218.03028809,0.00023333,2]
[426914659,1783009832000,-503.0,0.00023644,2]
[426914660,1783009832000,-218.03028809,0.00023667,2]
[426914654,1783009832000,-150.0,0.00023014,2]
[426914649,1783009832000,-17712.17,0.00022582,2]
[426914650,1783009832000,-5000.0,0.00022605,2]
[426914661,1783009832000,-1562.99684887,0.00023929,2]
[426914651,1783009832000,-3595.44,0.0002262,2]
[426914648,1783009832000,-347.86,0.00022582,2]
[426914632,1783009832000,-903.0,0.00022207,2]
[426914639,1783009832000,-209.44922207,0.00022412,2]
[426914640,1783009832000,-1006.0973334,0.0002245,2]
[426914643,1783009832000,-200.0,0.00022517,2]
[426914641,1783009832000,-914.0,0.00022451,2]
[426914652,1783009832000,-162.73,0.00022695,2]
[426914665,1783009832000,-332.0,0.00024,2]
[426914646,1783009832000,-168.35,0.00022566,2]
[426914645,1783009832000,-150.0,0.00022566,2]
[426914647,1783009832000,-166.14,0.00022582,2]
[426914644,1783009832000,-171.57,0.00022564,2]
[426914681,1783009833000,-696.65656659,0.00024396,2]
[426914679,1783009833000,-168.73,0.00024322,2]
[426914680,1783009833000,-218.03028809,0.00024333,2]
[426914689,1783009833000,-218.03028809,0.00024667,2]
[426914684,1783009833000,-904.0,0.00024456,2]
[426914688,1783009833000,-223.38,0.00024658,2]
[426914683,1783009833000,-529.69666633,0.00024449,2]
[426914674,1783009833000,-150.0,0.00024115,7]
[426914687,1783009833000,-4190.4508,0.000246,2]
[426914685,1783009833000,-900.0,0.00024597,2]
[426914673,1783009833000,-150.0,0.00024115,7]
[426914678,1783009833000,-7628.75,0.00024174,2]
[426914671,1783009833000,-154.92213951,0.00024115,7]
[426914672,1783009833000,-150.0,0.00024115,7]
[426914669,1783009833000,-175.84951452,0.00024,2]
[426914670,1783009833000,-150.0,0.00024115,7]
[426914677,1783009833000,-555.94,0.00024174,2]
[426914667,1783009833000,-352.0,0.00024,2]
[426914676,1783009833000,-250.61,0.00024174,2]
[426914668,1783009833000,-218.03028809,0.00024,2]
[426914666,1783009833000,-318.0,0.00024,2]
[426914682,1783009833000,-157.51479692,0.00024397,2]
[426914675,1783009833000,-150.0,0.00024164,2]
[426914690,1783009833000,-3421.8656,0.00024699,2]
[426914699,1783009833000,-500.0,0.00024799,2]
[426914692,1783009833000,-800.0,0.000247,9]
[426914715,1783009833000,-4475.19646546,0.000249,120]
[426914714,1783009833000,-3955.94026185,0.000249,120]
[426914713,1783009833000,-365.59146918,0.000249,120]
[426914710,1783009833000,-500.0,0.00024899,2]
[426914712,1783009833000,-93280.68222582,0.000249,120]
[426914686,1783009833000,-909.0,0.00024597,2]
[426914706,1783009833000,-914.0,0.00024813,2]
[426914711,1783009833000,-500.0,0.00024899,2]
[426914704,1783009833000,-2500.0,0.000248,2]
[426914708,1783009833000,-628.295662,0.00024897,2]
[426914709,1783009833000,-500.0,0.00024899,2]
[426914703,1783009833000,-16238.79726646,0.000248,2]
[426914707,1783009833000,-509.0,0.00024822,9]
[426914700,1783009833000,-2000.0,0.000248,2]
[426914705,1783009833000,-884.0,0.00024813,2]
[426914702,1783009833000,-1600.0,0.000248,9]
[426914693,1783009833000,-500.0,0.00024799,2]
[426914701,1783009833000,-2500.0,0.000248,6]
[426914691,1783009833000,-9005.12121139,0.000247,2]
[426914696,1783009833000,-195.16829605,0.00024799,2]
[426914694,1783009833000,-500.0,0.00024799,2]
[426914698,1783009833000,-500.0,0.00024799,2]
[426914697,1783009833000,-500.0,0.00024799,2]
[426914695,1783009833000,-500.0,0.00024799,2]
[426914738,1783009838000,-292.750342,0.0002499,14]
[426914743,1783009838000,-203.649258,0.0002499,14]
[426914739,1783009838000,-216.914102,0.0002499,14]
[426914742,1783009838000,-292.750342,0.0002499,14]
[426914741,1783009838000,-216.914103,0.0002499,14]
[426914740,1783009838000,-203.649259,0.0002499,14]
[426914733,1783009838000,-491.529431,0.000249,120]
[426914735,1783009838000,-2400.0,0.000249,9]
[426914736,1783009838000,-633.97,0.00024967,7]
[426914734,1783009838000,-23512.71761744,0.000249,120]
[426914732,1783009838000,-3855.24301457,0.000249,120]
[426914731,1783009838000,-2399.91851468,0.000249,120]
[426914744,1783009838000,-214.474321,0.0002499,14]
[426914737,1783009838000,-28646.089089,0.0002499,2]
[426914745,1783009838000,-504.9477183,0.00024999,2]
[426914756,1783009838000,-16238.79726645,0.00025222,2]
[426914746,1783009838000,-159.0,0.00025,2]
[426914758,1783009838000,-500.0,0.00025286,2]
[426914760,1783009838000,-500.0,0.00025286,2]
[426914761,1783009838000,-501.95764274,0.00025286,2]
[426914762,1783009838000,-600.0,0.00025286,2]
[426914759,1783009838000,-500.0,0.00025286,2]
[426914757,1783009838000,-500.0,0.00025286,2]
[426914751,1783009838000,-16238.79726645,0.00025011,2]
[426914755,1783009838000,-628.295662,0.00025219,2]
[426914753,1783009838000,-1000.0,0.0002507,2]
[426914750,1783009838000,-218.03028809,0.00025,2]
[426914752,1783009838000,-628.295662,0.00025058,2]
[426914747,1783009838000,-332.0,0.00025,2]
[426914749,1783009838000,-352.0,0.00025,2]
[426914748,1783009838000,-318.0,0.00025,2]
[426914754,1783009838000,-262.01320513,0.0002507,2]
[426914766,1783009839000,-29835.5707875,0.00025287,2]
[426914764,1783009839000,-320.32458334,0.00025287,2]
[426914768,1783009839000,-2755.4030721,0.00025287,2]
[426914770,1783009839000,-1614.4556135,0.00025287,2]
[426914772,1783009839000,-3263.4759144,0.00025287,2]
[426914788,1783009839000,-628.295663,0.0002538,2]
[426914776,1783009839000,-990.599893,0.00025287,2]
[426914774,1783009839000,-3876.909941,0.00025287,2]
[426914778,1783009839000,-1588.6634845,0.00025287,2]
[426914792,1783009839000,-222500.81323589,0.000255,2]
[426914780,1783009839000,-225.49,0.00025306,2]
[426914795,1783009839000,-188612.90225205,0.000255,5]
[426914782,1783009839000,-431.0758958,0.00025317,2]
[426914786,1783009839000,-150.0,0.00025373,2]
[426914785,1783009839000,-218.03028809,0.00025333,2]
[426914790,1783009839000,-16238.79726645,0.00025433,2]
[426914853,1783009840000,-1687.437154,0.000255,5]
[426914851,1783009840000,-300.22610282,0.000255,5]
[426914861,1783009843000,-350170.16844263,0.000255,5]
[426914863,1783009843000,-11263.20069617,0.000255,5]
[426914862,1783009843000,-16039.19727009,0.000255,5]
[426914871,1783009846000,-1720.49999964,0.000255,5]
[426914877,1783009847000,-6120.0,0.000255,5]
[426914876,1783009847000,-1803.77838496,0.000255,5]
[426914874,1783009847000,-82690.18289638,0.000255,5]
[426914883,1783010686000,255214.22600002,0.00015,2]
[426914882,1783010686000,219005.97882721,0.00015,2]
[426914884,1783010818000,205.0,9.8e-05,2]
[426914896,1783011032000,-5177.02417506,0.0001611,2]
[426914928,1783011032000,-2543.05,0.00022115,2]
[426914918,1783011032000,-150.0,0.00018639,2]
[426914919,1783011032000,-26488.18607426,0.0001864,2]
[426914920,1783011032000,-170.14,0.00019355,7]
[426914921,1783011032000,-509.0,0.0001966,5]
[426914922,1783011032000,-151.25942779,0.00020956,2]
[426914924,1783011032000,-6046.90368946,0.0002111,2]
[426914925,1783011032000,-8075.48,0.00021273,2]
[426914917,1783011032000,-220.26572649,0.00018,2]
[426914923,1783011032000,-245.36298371,0.00020997,2]
[426914927,1783011032000,-250.0,0.00022038,2]
[426914926,1783011032000,-150.0,0.00021918,2]
[426914931,1783011032000,-5000.0,0.00022187,2]
[426914933,1783011032000,-395.89,0.00022466,2]
[426914936,1783011032000,-439.0,0.000225,7]
[426914932,1783011032000,-9981.8,0.00022464,2]
[426914930,1783011032000,-1876.76,0.00022187,2]
[426914914,1783011032000,-193.0,0.00017721,2]
[426914934,1783011032000,-899.09,0.00022466,2]
[426914915,1783011032000,-200.0,0.00017867,2]
[426914913,1783011032000,-4000.0,0.00017721,2]
[426914899,1783011032000,-151.0,0.0001611,2]
[426914901,1783011032000,-150.0,0.0001611,2]
[426914900,1783011032000,-152.0,0.0001611,2]
[426914895,1783011032000,-623.75982494,0.0001611,2]
[426914898,1783011032000,-250.0,0.0001611,2]
[426914897,1783011032000,-4546.54412742,0.0001611,2]
[426914902,1783011032000,-152.0,0.0001611,2]
[426914903,1783011032000,-509.0,0.0001611,2]
[426914908,1783011032000,-250.0,0.00016521,2]
[426914904,1783011032000,-152.0,0.0001611,2]
[426914909,1783011032000,-250.0,0.00017721,2]
[426914906,1783011032000,-151.0,0.0001611,2]
[426914905,1783011032000,-150.0,0.0001611,2]
[426914907,1783011032000,-151.0,0.0001611,2]
[426914910,1783011032000,-383.41546002,0.00017721,2]
[426914911,1783011032000,-500.0,0.00017721,2]
[426914916,1783011032000,-200.0,0.00017867,7]
[426914912,1783011032000,-600.0,0.00017721,2]
[426914940,1783011032000,-151.0,0.00022555,2]
[426914929,1783011032000,-150.0,0.00022186,2]
[426914938,1783011032000,-761.43,0.00022546,2]
[426914990,1783011032000,-2136.08,0.000226,2]
[426914977,1783011032000,-151.0,0.00022555,2]
[426914993,1783011032000,-199.16,0.00022804,2]
[426914998,1783011032000,-150.0,0.00022972,2]
[426915001,1783011032000,-150.0,0.00023014,2]
[426915000,1783011032000,-712.19774754,0.00023,2]
[426914981,1783011032000,-151.0,0.00022555,2]
[426914979,1783011032000,-151.0,0.00022555,2]
[426914986,1783011032000,-161.69,0.00022565,2]
[426914984,1783011032000,-500.0,0.00022555,2]
[426915005,1783011032000,-168.73,0.00023154,2]
[426915007,1783011032000,-509.0,0.00023209,8]
[426915010,1783011032000,-1797.72,0.00023332,2]
[426915004,1783011032000,-500.0,0.00023103,2]
[426915012,1783011032000,-500.0,0.00023377,2]
[426915013,1783011032000,-3268.32513174,0.00023586,2]
[426915009,1783011032000,-200.0,0.00023326,2]
[426915008,1783011032000,-1933.59,0.00023265,2]
[426915006,1783011032000,-6507.46153744,0.00023164,2]
[426914996,1783011032000,-500.0,0.00022829,2]
[426914939,1783011032000,-219.04743701,0.00022555,2]
[426914988,1783011032000,-1575.0774152,0.00022594,2]
[426914975,1783011032000,-151.0,0.00022555,2]
[426914937,1783011032000,-152.83,0.0002251,2]
[426914942,1783011032000,-151.0,0.00022555,2]
[426914955,1783011032000,-151.0,0.00022555,2]
[426914958,1783011032000,-151.0,0.00022555,2]
[426915011,1783011032000,-712.19774754,0.00023333,2]
[426914961,1783011032000,-151.0,0.00022555,2]
[426914963,1783011032000,-151.0,0.00022555,2]
[426914944,1783011032000,-151.0,0.00022555,2]
[426914941,1783011032000,-151.0,0.00022555,2]
[426914949,1783011032000,-151.0,0.00022555,2]
[426914967,1783011032000,-151.0,0.00022555,2]
[426914965,1783011032000,-151.0,0.00022555,2]
[426914952,1783011032000,-151.0,0.00022555,2]
[426914969,1783011032000,-151.0,0.00022555,2]
[426914971,1783011032000,-151.0,0.00022555,2]
[426914973,1783011032000,-151.0,0.00022555,2]
[426914991,1783011032000,-150.0,0.0002271,2]
[426914946,1783011032000,-151.0,0.00022555,2]
[426915033,1783011033000,-15305.11060846,0.00024233,2]
[426915035,1783011033000,-712.19774754,0.00024333,2]
[426915038,1783011033000,-15305.11060844,0.00024507,2]
[426915040,1783011033000,-896.0,0.00024577,2]
[426915032,1783011033000,-150.5904672,0.00024225,2]
[426915037,1783011033000,-893.0,0.00024488,2]
[426915031,1783011033000,-4190.4508,0.00024222,2]
[426915030,1783011033000,-1000.0,0.00024173,2]
[426915036,1783011033000,-1933.59,0.00024428,2]
[426915041,1783011033000,-150.9510182,0.00024599,2]
[426915020,1783011033000,-326.0,0.00024,2]
[426915034,1783011033000,-66225.53728997,0.00024323,2]
[426915023,1783011033000,-153.0,0.00024,2]
[426915024,1783011033000,-156.0,0.00024,2]
[426915022,1783011033000,-287.0,0.00024,2]
[426915019,1783011033000,-167.0,0.00024,2]
[426915029,1783011033000,-150.0,0.00024164,2]
[426915028,1783011033000,-712.19774754,0.00024,2]
[426915026,1783011033000,-155.0,0.00024,2]
[426915027,1783011033000,-157.0,0.00024,2]
[426915017,1783011033000,-500.0,0.000239,2]
[426915025,1783011033000,-364.0,0.00024,2]
[426915039,1783011033000,-6087.54,0.00024524,7]
[426915018,1783011033000,-164.0,0.00024,2]
[426915015,1783011033000,-712.19774754,0.00023667,2]
[426915016,1783011033000,-1933.59,0.00023846,2]
[426915021,1783011033000,-156.0,0.00024,2]
[426915043,1783011033000,-2500.0,0.000246,2]
[426915014,1783011033000,-500.0,0.00023651,2]
[426915053,1783011033000,-480.08962254,0.00024699,2]
[426915070,1783011033000,-500.0,0.00023376,2]
[426915051,1783011033000,-288.84889646,0.00024699,2]
[426915066,1783011033000,-254.60488018,0.00023376,2]
[426915069,1783011033000,-169.5168296,0.00023376,2]
[426915071,1783011033000,-1631.94562067,0.000247,120]
[426915067,1783011033000,-500.0,0.00023376,2]
[426915065,1783011033000,-349.97722627,0.00023376,2]
[426915062,1783011033000,-79.32053855,0.00023376,2]
[426915064,1783011033000,-500.0,0.00023376,2]
[426915056,1783011033000,-205.45053966,0.00024699,2]
[426915061,1783011033000,-538.18293477,0.00023376,2]
[426915057,1783011033000,-220.99812203,0.00024699,2]
[426915060,1783011033000,-964.99694475,0.000247,120]
[426915063,1783011033000,-307.09182605,0.00023376,2]
[426915058,1783011033000,-28409.85800285,0.000247,120]
[426915054,1783011033000,-500.0,0.00024699,2]
[426915052,1783011033000,-500.0,0.00024699,2]
[426915059,1783011033000,-16516.73748683,0.000247,120]
[426915047,1783011033000,-196.82,0.00024658,2]
[426915042,1783011033000,-6686.0150818,0.00024599,2]
[426915044,1783011033000,-698.40921246,0.00024648,2]
[426915046,1783011033000,-169.7,0.00024658,2]
[426915050,1783011033000,-500.0,0.00024699,2]
[426915049,1783011033000,-350.0,0.00024693,2]
[426915048,1783011033000,-712.19774754,0.00024667,2]
[426915055,1783011033000,-500.0,0.00024699,2]
[426915045,1783011033000,-1000.0,0.00024658,2]
[426915068,1783011033000,-500.0,0.00023376,2]
[426915126,1783011041000,-183.93351834,0.0001611,2]
[426915127,1783011041000,-488.14544773,0.00023376,2]
[426915125,1783011041000,-249.0,0.0001611,2]
[426915137,1783011043000,-11.85455227,0.00023376,2]
[426915138,1783011043000,-500.0,0.00023376,2]
[426915142,1783011044000,-500.0,0.00023376,2]
[426915146,1783011044000,-300.42861326,0.00023376,2]
[426915144,1783011044000,-500.0,0.00023376,2]
[426915139,1783011044000,-500.0,0.00023376,2]
[426915141,1783011044000,-500.0,0.00023376,2]
[426915145,1783011044000,-500.0,0.00023376,2]
[426915140,1783011044000,-500.0,0.00023376,2]
[426915143,1783011044000,-500.0,0.00023376,2]
[426915150,1783011047000,-182.55854463,0.00023376,2]
[426915149,1783011047000,-500.0,0.00023376,2]
[426915148,1783011047000,-199.57138674,0.00023376,2]
[426915147,1783011047000,-151.0,0.00023376,2]